[Event "German Bundesliga 2023-24"]
[Site "Germany"]
[Date "2024.02.03"]
[Round "7.5"]
[White "Gumularz, Szymon"]
[Black "Van Wely, Loek"]
[Result "1/2-1/2"]
[ECO "D45"]
[WhiteElo "2580"]
[BlackElo "2626"]
[Annotator "ChessBase"]
[PlyCount "131"]
[EventDate "2023.10.20"]
[EventType "team-tourn"]
[EventCountry "GER"]
[SourceTitle "playchess.com"]
[Source "ChessBase"]
[SourceQuality "1"]
[TimeControl "40/6000+30:3000+30"]

1. c4 {[%emt 0:00:05]} c6 {[%emt 0:01:11]} 2. Nf3 {[%emt 0:00:19]} d5 {[%emt 0:00:07]} 3. e3 {[%emt 0:00:11]} Nf6 {[%emt 0:00:28]} 4. Nc3 {[%emt 0:00:11]} e6 {[%emt 0:00:22]} 5. b3 {[%emt 0:00:08]} Bd6 {[%emt 0:00:22]} 6. Bb2 {[%emt 0:00:10]} O-O {[%emt 0:05:51]} 7. d4 {[%emt 0:00:10]} Nbd7 {[%emt 0:01:35]} 8. Be2 {[%emt 0:00:08]} b6 {[%emt 0:03:08]} 9. O-O {[%emt 0:00:24]} Bb7 {[%emt 0:00:03]} 10. Qc2 {[%emt 0:00:11]} Qe7 {[%emt 0:01:10]} 11. Rad1 {[%emt 0:00:16]} Rad8 {[%emt 0:02:42]} 12. Rfe1 {[%emt 0:00:27]} Rfe8 {[%emt 0:00:09]} 13. Bf1 {[%emt 0:00:07]} e5 {[%emt 0:03:39]} 14. dxe5 {[%emt 0:00:16]} Nxe5 {[%emt 0:00:06]} 15. Nd4 {[%emt 0:00:22]} dxc4 {[%emt 0:01:06]} 16. bxc4 {[%emt 0:00:15]} g6 {[%emt 0:11:08]} 17. h3 {[%emt 0:00:13]} Bb8 {[%emt 0:18:57]} 18. Be2 {[%emt 0:29:56]} c5 {[%emt 0:05:14]} 19. Nb3 {[%emt 0:00:51]} Nc6 {[%emt 0:12:30]} 20. Bf1 {[%emt 0:16:08]} Nb4 {[%emt 0:08:45]} 21. Qc1 {[%emt 0:18:47]} Rxd1 {[%emt 0:09:03]} 22. Qxd1 {[%emt 0:18:09]} Rd8 {[%emt 0:03:36]} 23. Qb1 {[%emt 0:00:36]} Ne4 {[%emt 0:02:43]} 24. a3 {[%emt 0:09:05]} Qe5 {[%emt 0:04:45]} 25. f4 {[%emt 0:00:16]} Nxc3 {[%emt 0:00:06]} 26. axb4 {[%emt 0:04:28]} Nxb1 {[%emt 0:08:38]} 27. Bxe5 {[%emt 0:00:16]} Bxe5 {[%emt 0:00:06]} 28. fxe5 {[%emt 0:01:01]} Nd2 {[%emt 0:01:10]} 29. Nxd2 {[%emt 0:00:06]} Rxd2 {[%emt 0:00:04]} 30. bxc5 {[%emt 0:00:11]} bxc5 {[%emt 0:00:06]} 31. Ra1 {[%emt 0:00:06]} a6 {[%emt 0:01:50]} 32. Ra5 {[%emt 0:00:14]} Kf8 {[%emt 0:00:56]} 33. Rxc5 {[%emt 0:00:37]} Ke7 {[%emt 0:00:11]} 34. Ra5 {[%emt 0:00:24]} g5 {[%emt 0:02:48]} 35. g4 {[%emt 0:01:01]} h6 {[%emt 0:00:38]} 36. c5 {[%emt 0:01:19]} Rc2 {[%emt 0:01:09]} 37. Bxa6 {[%emt 0:04:15]} Bxa6 {[%emt 0:00:06]} 38. Rxa6 {[%emt 0:00:04]} Rxc5 {[%emt 0:00:06]} 39. Rxh6 {[%emt 0:00:09]} Rxe5 {[%emt 0:00:03]} 40. Kf2 {[%emt 0:00:06]} Ra5 {[%emt 0:00:36]} 41. Kf3 {[%emt 0:52:06]} f6 {[%emt 0:51:21]} 42. Rh7+ {[%emt 0:00:10]} Ke6 {[%emt 0:00:04]} 43. Rb7 {[%emt 0:00:04]} Ra4 {[%emt 0:00:57]} 44. Rb6+ {[%emt 0:00:29]} Ke7 {[%emt 0:00:59]} 45. Rb3 {[%emt 0:00:22]} Ke6 {[%emt 0:00:17]} 46. Rd3 {[%emt 0:01:24]} Ra1 {[%emt 0:01:12]} 47. Rb3 {[%emt 0:05:38]} Rh1 {[%emt 0:00:00]} 48. Kg2 {[%emt 0:00:00]} Re1 {[%emt 0:00:00]} 49. Ra3 {[%emt 0:00:00]} Re2+ {[%emt 0:00:00]} 50. Kg3 {[%emt 0:00:00]} Ke5 {[%emt 0:00:00]} 51. h4 {[%emt 0:00:00]} gxh4+ {[%emt 0:00:00]} 52. Kxh4 {[%emt 0:00:00]} Rh2+ {[%emt 0:00:00]} 53. Kg3 {[%emt 0:00:00]} Rh1 {[%emt 0:00:00]} 54. Kg2 {[%emt 0:00:00]} Rb1 {[%emt 0:00:00]} 55. Ra5+ {[%emt 0:00:00]} Ke6 {[%emt 0:00:00]} 56. Kf3 {[%emt 0:00:00]} Rf1+ {[%emt 0:00:00]} 57. Ke2 {[%emt 0:00:00]} Rg1 {[%emt 0:00:00]} 58. Ra4 {[%emt 0:00:00]} Ke5 {[%emt 0:00:00]} 59. Kf2 {[%emt 0:00:00]} Rb1 {[%emt 0:00:00]} 60. Ra8 {[%emt 0:00:00]} Ke6 {[%emt 0:00:00]} 61. Re8+ {[%emt 0:00:00]} Kf7 {[%emt 0:00:00]} 62. Re4 {[%emt 0:00:00]} Kg6 {[%emt 0:00:00]} 63. Rf4 {[%emt 0:00:00]} Rb2+ {[%emt 0:00:00]} 64. Kf3 {[%emt 0:00:00]} Rb1 {[%emt 0:00:00]} 65. Rd4 {[%emt 0:00:00]} Rf1+ {[%emt 0:00:00]} 66. Ke2 {[%emt 0:00:11]} 1/2-1/2

[Event "German Bundesliga 2023-24"]
[Site "Germany"]
[Date "2024.02.04"]
[Round "7.5"]
[White "Swinkels, Robin"]
[Black "Stevic, Hrvoje"]
[Result "1/2-1/2"]
[ECO "D11"]
[WhiteElo "2515"]
[BlackElo "2549"]
[Annotator "ChessBase"]
[PlyCount "46"]
[EventDate "2023.10.20"]
[EventType "team-tourn"]
[EventCountry "GER"]
[SourceTitle "playchess.com"]
[Source "ChessBase"]
[SourceQuality "1"]
[TimeControl "40/6000+30:3000+30"]

1. d4 {[%emt 0:00:03]} d5 {[%emt 0:00:08]} 2. c4 {[%emt 0:00:04]} c6 {[%emt 0:00:29]} 3. Nf3 {[%emt 0:00:06]} Nf6 {[%emt 0:00:13]} 4. g3 {[%emt 0:00:32]} Bf5 {[%emt 0:00:52]} 5. Nc3 {[%emt 0:00:37]} e6 {[%emt 0:00:24]} 6. Qb3 {[%emt 0:00:53]} Qb6 {[%emt 0:00:22]} 7. c5 {[%emt 0:00:06]} Qxb3 {[%emt 0:00:06]} 8. axb3 {[%emt 0:00:03]} Be7 {[%emt 0:00:36]} 9. Bf4 {[%emt 0:00:31]} Nbd7 {[%emt 0:00:19]} 10. b4 {[%emt 0:03:47]} h6 {[%emt 0:01:08]} 11. h3 {[%emt 0:16:44]} g5 {[%emt 0:07:48]} 12. Bc7 {[%emt 0:14:17]} O-O {[%emt 0:11:58]} 13. g4 {[%emt 0:01:12]} Bg6 {[%emt 0:11:42]} 14. e3 {[%emt 0:03:41]} a6 {[%emt 0:01:48]} 15. Be2 {[%emt 0:17:43]} Rac8 {[%emt 0:03:59]} 16. Bh2 {[%emt 0:01:36]} Ne4 {[%emt 0:07:10]} 17. Nxe4 {[%emt 0:21:58]} Bxe4 {[%emt 0:00:38]} 18. Rg1 {[%emt 0:01:08]} Bf6 {[%emt 0:41:56]} 19. Bd6 {[%emt 0:04:41]} Bxf3 {[%emt 0:04:13]} 20. Bxf3 {[%emt 0:00:04]} Rfe8 {[%emt 0:00:03]} 21. O-O-O {[%emt 0:01:39]} Bd8 {[%emt 0:00:20]} 22. Be2 {[%emt 0:03:42]} Bc7 {[%emt 0:00:57]} 23. Bxc7 {[%emt 0:01:59]} Rxc7 {[%emt 0:00:04]} 1/2-1/2

[Event "German Bundesliga 2023-24"]
[Site "Germany"]
[Date "2024.02.03"]
[Round "7.6"]
[White "Smeets, Jan"]
[Black "Meshkovs, Nikita"]
[Result "1/2-1/2"]
[ECO "C83"]
[WhiteElo "2535"]
[BlackElo "2526"]
[Annotator "ChessBase"]
[PlyCount "105"]
[EventDate "2023.10.20"]
[EventType "team-tourn"]
[EventCountry "GER"]
[SourceTitle "playchess.com"]
[Source "ChessBase"]
[SourceQuality "1"]
[TimeControl "40/6000+30:3000+30"]

1. e4 {[%emt 0:00:03]} e5 {[%emt 0:00:10]} 2. Nf3 {[%emt 0:00:15]} Nc6 {[%emt 0:00:07]} 3. Bb5 {[%emt 0:00:25]} a6 {[%emt 0:00:12]} 4. Ba4 {[%emt 0:00:09]} Nf6 {[%emt 0:00:07]} 5. O-O {[%emt 0:00:20]} Nxe4 {[%emt 0:00:13]} 6. d4 {[%emt 0:00:13]} b5 {[%emt 0:00:07]} 7. Bb3 {[%emt 0:00:05]} d5 {[%emt 0:00:05]} 8. dxe5 {[%emt 0:00:12]} Be6 {[%emt 0:00:06]} 9. Be3 {[%emt 0:02:00]} Be7 {[%emt 0:00:07]} 10. c3 {[%emt 0:08:17]} O-O {[%emt 0:00:07]} 11. Nbd2 {[%emt 0:00:30]} Bg4 {[%emt 0:00:08]} 12. Re1 {[%emt 0:05:25]} Nxd2 {[%emt 0:14:56]} 13. Bxd2 {[%emt 0:00:47]} Na5 {[%emt 0:00:07]} 14. Bc2 {[%emt 0:01:31]} Nc4 {[%emt 0:01:46]} 15. Bf4 {[%emt 0:28:40]} Nxb2 {[%emt 0:02:36]} 16. Qb1 {[%emt 0:02:10]} Nc4 {[%emt 0:05:02]} 17. Bxh7+ {[%emt 0:09:24]} Kh8 {[%emt 0:00:01]} 18. Bf5 {[%emt 0:09:21]} Bxf3 {[%emt 0:03:32]} 19. gxf3 {[%emt 0:00:05]} Rb8 {[%emt 0:04:14]} 20. Kh1 {[%emt 0:07:11]} Bg5 {[%emt 0:06:15]} 21. Qc1 {[%emt 0:18:27]} Bxf4 {[%emt 0:00:08]} 22. Qxf4 {[%emt 0:00:03]} Rb6 {[%emt 0:00:07]} 23. a4 {[%emt 0:10:32]} bxa4 {[%emt 0:04:10]} 24. Rxa4 {[%emt 0:01:16]} Rh6 {[%emt 0:00:01]} 25. Raa1 {[%emt 0:01:27]} Qh4 {[%emt 0:06:03]} 26. Qxh4 {[%emt 0:03:20]} Rxh4 {[%emt 0:00:02]} 27. Bd3 {[%emt 0:00:48]} Re8 {[%emt 0:01:23]} 28. Rxa6 {[%emt 0:00:18]} g5 {[%emt 0:06:53]} 29. e6 {[%emt 0:01:01]} Kg7 {[%emt 0:08:29]} 30. e7 {[%emt 0:00:18]} f6 {[%emt 0:07:03]} 31. Ra4 {[%emt 0:00:24]} Ne5 {[%emt 0:04:53]} 32. Rxh4 {[%emt 0:00:05]} Nxd3 {[%emt 0:05:54]} 33. Rg1 {[%emt 0:01:10]} Nxf2+ {[%emt 0:00:27]} 34. Kg2 {[%emt 0:00:01]} gxh4 {[%emt 0:00:07]} 35. Kxf2+ {[%emt 0:00:02]} Kf7 {[%emt 0:00:08]} 36. Rg4 {[%emt 0:00:52]} Rh8 {[%emt 0:01:24]} 37. c4 {[%emt 0:00:13]} c6 {[%emt 0:01:24]} 38. cxd5 {[%emt 0:01:04]} cxd5 {[%emt 0:00:02]} 39. e8=Q+ {[%emt 0:00:10]} Kxe8 {[%emt 0:00:07]} 40. Rg7 {[%emt 0:00:06]} Rh5 {[%emt 0:02:59]} 41. f4 {[%emt 0:07:36]} d4 {[%emt 0:03:51]} 42. Ke2 {[%emt 0:04:11]} Ra5 {[%emt 0:00:07]} 43. Kd3 {[%emt 0:00:11]} Ra2 {[%emt 0:00:01]} 44. Kxd4 {[%emt 0:00:36]} Rxh2 {[%emt 0:01:41]} 45. Ke4 {[%emt 0:00:24]} Kf8 {[%emt 0:01:21]} 46. Rg6 {[%emt 0:01:44]} h3 {[%emt 0:01:25]} 47. Kf5 {[%emt 0:02:38]} Rh1 {[%emt 0:07:07]} 48. Rxf6+ {[%emt 0:01:09]} Kg7 {[%emt 0:00:43]} 49. Rg6+ {[%emt 0:00:28]} Kf7 {[%emt 0:00:11]} 50. Rh6 {[%emt 0:00:20]} h2 {[%emt 0:00:12]} 51. Rh3 {[%emt 0:00:22]} Ke7 {[%emt 0:01:48]} 52. Rh6 {[%emt 0:00:39]} Kf7 {[%emt 0:00:30]} 53. Rh3 {[%emt 0:00:04]} 1/2-1/2

[Event "German Bundesliga 2023-24"]
[Site "Germany"]
[Date "2024.02.04"]
[Round "7.6"]
[White "Jovanovic, Zoran"]
[Black "Cyborowski, Lukasz"]
[Result "1-0"]
[ECO "B46"]
[WhiteElo "2513"]
[BlackElo "2479"]
[Annotator "ChessBase"]
[PlyCount "119"]
[EventDate "2023.10.20"]
[EventType "team-tourn"]
[EventCountry "GER"]
[SourceTitle "playchess.com"]
[Source "ChessBase"]
[SourceQuality "1"]
[TimeControl "40/6000+30:3000+30"]

1. e4 {[%emt 0:00:01]} c5 {[%emt 0:00:15]} 2. Nf3 {[%emt 0:00:21]} e6 {[%emt 0:00:19]} 3. Nc3 {[%emt 0:00:35]} a6 {[%emt 0:01:22]} 4. g3 {[%emt 0:03:24]} Nc6 {[%emt 0:01:14]} 5. d4 {[%emt 0:00:46]} cxd4 {[%emt 0:01:07]} 6. Nxd4 {[%emt 0:00:01]} d6 {[%emt 0:03:49]} 7. Nxc6 {[%emt 0:01:15]} bxc6 {[%emt 0:00:05]} 8. Bg2 {[%emt 0:00:07]} d5 {[%emt 0:24:36]} 9. O-O {[%emt 0:15:00]} Nf6 {[%emt 0:00:15]} 10. exd5 {[%emt 0:11:32]} cxd5 {[%emt 0:23:52]} 11. Na4 {[%emt 0:01:56]} Be7 {[%emt 0:00:05]} 12. c4 {[%emt 0:01:10]} O-O {[%emt 0:00:53]} 13. Nc3 {[%emt 0:09:23]} Rb8 {[%emt 0:07:14]} 14. cxd5 {[%emt 0:03:20]} Nxd5 {[%emt 0:00:07]} 15. Nxd5 {[%emt 0:06:21]} exd5 {[%emt 0:00:14]} 16. Qxd5 {[%emt 0:12:22]} Qxd5 {[%emt 0:03:26]} 17. Bxd5 {[%emt 0:00:15]} Bf6 {[%emt 0:00:25]} 18. Bb3 {[%emt 0:02:39]} Bh3 {[%emt 0:02:54]} 19. Re1 {[%emt 0:03:21]} Rbe8 {[%emt 0:02:44]} 20. Rxe8 {[%emt 0:07:49]} Rxe8 {[%emt 0:00:04]} 21. Be3 {[%emt 0:00:03]} Rc8 {[%emt 0:13:46]} 22. Rb1 {[%emt 0:10:54]} Bf5 {[%emt 0:09:13]} 23. Rd1 {[%emt 0:00:36]} Bxb2 {[%emt 0:00:06]} 24. Rd6 {[%emt 0:00:38]} Ra8 {[%emt 0:03:19]} 25. Bd5 {[%emt 0:01:25]} Ba3 {[%emt 0:01:48]} 26. Rb6 {[%emt 0:01:19]} Rd8 {[%emt 0:00:18]} 27. Bb3 {[%emt 0:00:47]} Ra8 {[%emt 0:09:01]} 28. Rb7 {[%emt 0:03:45]} Be6 {[%emt 0:01:20]} 29. Bxe6 {[%emt 0:00:18]} fxe6 {[%emt 0:00:03]} 30. Bd4 {[%emt 0:00:07]} Bf8 {[%emt 0:00:02]} 31. Bb6 {[%emt 0:05:07]} a5 {[%emt 0:00:24]} 32. a4 {[%emt 0:00:17]} e5 {[%emt 0:01:27]} 33. Kf1 {[%emt 0:02:51]} Rc8 {[%emt 0:00:33]} 34. Bc7 {[%emt 0:00:02]} e4 {[%emt 0:00:31]} 35. Ke2 {[%emt 0:00:08]} g6 {[%emt 0:00:30]} 36. Ke3 {[%emt 0:00:56]} Bc5+ {[%emt 0:00:13]} 37. Kxe4 {[%emt 0:00:01]} Bxf2 {[%emt 0:00:08]} 38. Kd5 {[%emt 0:00:28]} Be1 {[%emt 0:00:50]} 39. Rb8 {[%emt 0:02:26]} Rxb8 {[%emt 0:00:12]} 40. Bxb8 {[%emt 0:00:01]} Kf7 {[%emt 0:00:29]} 41. Bc7 {[%emt 0:50:42]} h5 {[%emt 0:09:28]} 42. Kc6 {[%emt 0:00:00]} Ke6 {[%emt 0:00:12]} 43. Kb5 {[%emt 0:00:00]} h4 {[%emt 0:00:25]} 44. gxh4 {[%emt 0:00:00]} Kd7 {[%emt 0:00:10]} 45. Bg3 {[%emt 0:00:00]} Bb4 {[%emt 0:02:24]} 46. h3 {[%emt 0:00:00]} Bd2 {[%emt 0:00:42]} 47. Bf2 {[%emt 0:00:00]} Bb4 {[%emt 0:00:54]} 48. Bb6 {[%emt 0:00:00]} Be1 {[%emt 0:00:17]} 49. Bxa5 {[%emt 0:00:00]} Bxh4 {[%emt 0:00:04]} 50. Bb4 {[%emt 0:00:00]} Kc7 {[%emt 0:10:40]} 51. a5 {[%emt 0:00:00]} Bg5 {[%emt 0:00:32]} 52. Bc5 {[%emt 0:00:00]} Kb7 {[%emt 0:02:42]} 53. a6+ {[%emt 0:00:00]} Ka8 {[%emt 0:00:32]} 54. Kc6 {[%emt 0:00:00]} Bd2 {[%emt 0:00:28]} 55. Kd5 {[%emt 0:00:00]} Bc1 {[%emt 0:00:17]} 56. Ke6 {[%emt 0:00:00]} Bd2 {[%emt 0:00:31]} 57. Kf6 {[%emt 0:00:00]} g5 {[%emt 0:00:14]} 58. Kf5 {[%emt 0:00:00]} Bf4 {[%emt 0:01:16]} 59. Ke4 {[%emt 0:00:00]} Bd2 {[%emt 0:01:40]} 60. Be3 {[%emt 0:00:00]} 1-0

[Event "German Bundesliga 2023-24"]
[Site "Germany"]
[Date "2024.02.03"]
[Round "7.6"]
[White "Hoffmann, Paul"]
[Black "Adams, Michael"]
[Result "0-1"]
[ECO "C54"]
[WhiteElo "2378"]
[BlackElo "2674"]
[Annotator "ChessBase"]
[PlyCount "68"]
[EventDate "2023.10.20"]
[EventType "team-tourn"]
[EventCountry "GER"]
[SourceTitle "playchess.com"]
[Source "ChessBase"]
[SourceQuality "1"]
[TimeControl "40/6000+30:3000+30"]

1. e4 {[%emt 0:00:03]} e5 {[%emt 0:00:05]} 2. Bc4 {[%emt 0:00:05]} Nf6 {[%emt 0:00:07]} 3. d3 {[%emt 0:00:03]} Nc6 {[%emt 0:00:07]} 4. Nf3 {[%emt 0:00:06]} Bc5 {[%emt 0:00:07]} 5. c3 {[%emt 0:00:07]} d6 {[%emt 0:00:12]} 6. Bb3 {[%emt 0:00:50]} a5 {[%emt 0:02:00]} 7. Nbd2 {[%emt 0:03:28]} O-O {[%emt 0:00:34]} 8. O-O {[%emt 0:01:20]} Be6 {[%emt 0:08:22]} 9. a4 {[%emt 0:04:14]} d5 {[%emt 0:04:06]} 10. exd5 {[%emt 0:09:57]} Bxd5 {[%emt 0:01:00]} 11. Nc4 {[%emt 0:08:54]} Re8 {[%emt 0:10:41]} 12. Be3 {[%emt 0:03:51]} Nd7 {[%emt 0:10:20]} 13. d4 {[%emt 0:10:07]} exd4 {[%emt 0:01:34]} 14. cxd4 {[%emt 0:03:09]} Bb4 {[%emt 0:01:30]} 15. Ne1 {[%emt 0:09:04]} Nf8 {[%emt 0:08:02]} 16. Nd3 {[%emt 0:14:36]} Ne6 {[%emt 0:00:38]} 17. Nde5 {[%emt 0:03:40]} Ne7 {[%emt 0:06:44]} 18. Bc2 {[%emt 0:04:22]} Ng6 {[%emt 0:03:35]} 19. f4 {[%emt 0:06:15]} Nef8 {[%emt 0:04:38]} 20. Qd3 {[%emt 0:07:34]} f6 {[%emt 0:09:35]} 21. f5 {[%emt 0:07:51]} Nh4 {[%emt 0:03:13]} 22. g3 {[%emt 0:01:59]} fxe5 {[%emt 0:02:55]} 23. Nxe5 {[%emt 0:03:32]} Rxe5 {[%emt 0:09:47]} 24. dxe5 {[%emt 0:00:03]} Nf3+ {[%emt 0:00:06]} 25. Rxf3 {[%emt 0:00:04]} Bxf3 {[%emt 0:00:02]} 26. Bb3+ {[%emt 0:00:19]} Kh8 {[%emt 0:00:03]} 27. Qc4 {[%emt 0:00:04]} Nd7 {[%emt 0:00:55]} 28. Qf4 {[%emt 0:00:19]} Bc6 {[%emt 0:06:15]} 29. Rd1 {[%emt 0:04:38]} Qe7 {[%emt 0:01:56]} 30. f6 {[%emt 0:00:40]} gxf6 {[%emt 0:03:33]} 31. Rxd7 {[%emt 0:02:15]} Qxd7 {[%emt 0:04:30]} 32. exf6 {[%emt 0:00:56]} Qd3 {[%emt 0:01:28]} 33. f7 {[%emt 0:02:00]} Qb1+ {[%emt 0:01:07]} 34. Bc1 {[%emt 0:00:01]} Bc5+ {[%emt 0:00:26]} 0-1

[Event "German Bundesliga 2023-24"]
[Site "Germany"]
[Date "2024.02.03"]
[Round "7.7"]
[White "Bacrot, Etienne"]
[Black "Loxine, Jakov"]
[Result "1-0"]
[ECO "C11"]
[WhiteElo "2668"]
[BlackElo "2397"]
[Annotator "ChessBase"]
[PlyCount "91"]
[EventDate "2023.10.20"]
[EventType "team-tourn"]
[EventCountry "GER"]
[SourceTitle "playchess.com"]
[Source "ChessBase"]
[SourceQuality "1"]
[TimeControl "40/6000+30:3000+30"]

1. e4 {[%emt 0:02:32]} e6 {[%emt 0:00:06]} 2. d4 {[%emt 0:00:11]} d5 {[%emt 0:00:07]} 3. Nc3 {[%emt 0:00:04]} Nf6 {[%emt 0:00:06]} 4. e5 {[%emt 0:00:06]} Nfd7 {[%emt 0:00:04]} 5. f4 {[%emt 0:00:05]} c5 {[%emt 0:00:05]} 6. Nf3 {[%emt 0:00:05]} Nc6 {[%emt 0:00:06]} 7. Be3 {[%emt 0:00:11]} Be7 {[%emt 0:00:50]} 8. a3 {[%emt 0:06:55]} O-O {[%emt 0:10:30]} 9. dxc5 {[%emt 0:03:10]} Nxc5 {[%emt 0:03:22]} 10. Be2 {[%emt 0:01:22]} a5 {[%emt 0:10:13]} 11. O-O {[%emt 0:07:40]} b6 {[%emt 0:02:29]} 12. Qe1 {[%emt 0:08:23]} Bd7 {[%emt 0:05:33]} 13. Rd1 {[%emt 0:04:32]} Qb8 {[%emt 0:04:31]} 14. Kh1 {[%emt 0:04:08]} Qb7 {[%emt 0:09:47]} 15. Bb5 {[%emt 0:23:48]} Rfe8 {[%emt 0:17:39]} 16. f5 {[%emt 0:08:17]} exf5 {[%emt 0:01:15]} 17. Nxd5 {[%emt 0:00:57]} Bf8 {[%emt 0:18:40]} 18. Bxc5 {[%emt 0:11:40]} bxc5 {[%emt 0:02:14]} 19. a4 {[%emt 0:00:04]} Ra7 {[%emt 0:10:22]} 20. Qg3 {[%emt 0:02:01]} Kh8 {[%emt 0:00:15]} 21. Ng5 {[%emt 0:05:39]} Be6 {[%emt 0:02:53]} 22. Nf4 {[%emt 0:02:38]} Qc8 {[%emt 0:00:58]} 23. Qf3 {[%emt 0:05:46]} Rc7 {[%emt 0:02:57]} 24. Nd5 {[%emt 0:05:31]} Bxd5 {[%emt 0:05:19]} 25. Qxd5 {[%emt 0:00:32]} Nxe5 {[%emt 0:00:06]} 26. Bxe8 {[%emt 0:01:34]} Qxe8 {[%emt 0:00:04]} 27. Qd8 {[%emt 0:00:07]} Qxd8 {[%emt 0:00:42]} 28. Rxd8 {[%emt 0:00:04]} Kg8 {[%emt 0:00:06]} 29. Rxf5 {[%emt 0:00:31]} Re7 {[%emt 0:00:12]} 30. h3 {[%emt 0:02:10]} g6 {[%emt 0:01:26]} 31. Rf1 {[%emt 0:00:14]} Nc4 {[%emt 0:01:22]} 32. Nxh7 {[%emt 0:01:36]} Kxh7 {[%emt 0:00:20]} 33. Rxf8 {[%emt 0:00:04]} Kg7 {[%emt 0:00:09]} 34. Ra8 {[%emt 0:00:47]} Re2 {[%emt 0:00:14]} 35. Ra7 {[%emt 0:00:23]} Nxb2 {[%emt 0:00:21]} 36. Raxf7+ {[%emt 0:01:00]} Kh6 {[%emt 0:00:07]} 37. R7f2 {[%emt 0:01:02]} Re5 {[%emt 0:00:47]} 38. Rf4 {[%emt 0:00:34]} Re2 {[%emt 0:00:20]} 39. R1f2 {[%emt 0:00:21]} Re1+ {[%emt 0:00:09]} 40. Kh2 {[%emt 0:01:14]} Ra1 {[%emt 0:00:07]} 41. Rf1 {[%emt 0:51:05]} Ra2 {[%emt 0:50:11]} 42. Rg4 {[%emt 0:01:16]} Nxa4 {[%emt 0:00:16]} 43. Rf6 {[%emt 0:00:35]} Nc3 {[%emt 0:00:04]} 44. Rfxg6+ {[%emt 0:00:11]} Kh7 {[%emt 0:00:05]} 45. Rg7+ {[%emt 0:00:04]} Kh6 {[%emt 0:00:05]} 46. R4g6+ {[%emt 0:00:11]} 1-0

[Event "German Bundesliga 2023-24"]
[Site "Germany"]
[Date "2024.02.03"]
[Round "7.7"]
[White "Thybo, Jesper Sondergaard"]
[Black "Handke, Florian"]
[Result "1-0"]
[ECO "D80"]
[WhiteElo "2522"]
[BlackElo "2536"]
[Annotator "ChessBase"]
[PlyCount "91"]
[EventDate "2023.10.20"]
[EventType "team-tourn"]
[EventCountry "GER"]
[SourceTitle "playchess.com"]
[Source "ChessBase"]
[SourceQuality "1"]
[TimeControl "40/6000+30:3000+30"]

1. d4 {[%emt 0:00:12]} Nf6 {[%emt 0:00:04]} 2. c4 {[%emt 0:00:06]} g6 {[%emt 0:00:03]} 3. Nc3 {[%emt 0:00:18]} d5 {[%emt 0:00:03]} 4. Nf3 {[%emt 0:00:21]} Bg7 {[%emt 0:00:05]} 5. Bg5 {[%emt 0:00:27]} Ne4 {[%emt 0:00:13]} 6. Bf4 {[%emt 0:00:09]} Nxc3 {[%emt 0:00:06]} 7. bxc3 {[%emt 0:00:06]} c5 {[%emt 0:00:06]} 8. cxd5 {[%emt 0:00:29]} Qxd5 {[%emt 0:02:55]} 9. e3 {[%emt 0:00:20]} cxd4 {[%emt 0:00:12]} 10. cxd4 {[%emt 0:00:19]} Nc6 {[%emt 0:00:08]} 11. Be2 {[%emt 0:00:36]} Qa5+ {[%emt 0:00:12]} 12. Qd2 {[%emt 0:00:15]} Qxd2+ {[%emt 0:00:43]} 13. Kxd2 {[%emt 0:00:06]} O-O {[%emt 0:00:10]} 14. Rhb1 {[%emt 0:00:13]} Rd8 {[%emt 0:00:35]} 15. Ke1 {[%emt 0:00:55]} b6 {[%emt 0:00:58]} 16. a4 {[%emt 0:01:30]} Na5 {[%emt 0:07:04]} 17. Nd2 {[%emt 0:04:43]} Bb7 {[%emt 0:09:07]} 18. g4 {[%emt 0:07:52]} Rac8 {[%emt 0:01:39]} 19. Rc1 {[%emt 0:02:33]} Nc6 {[%emt 0:11:55]} 20. Bf3 {[%emt 0:06:46]} Ba8 {[%emt 0:00:28]} 21. g5 {[%emt 0:14:27]} Nb4 {[%emt 0:20:38]} 22. Ke2 {[%emt 0:03:08]} Bxf3+ {[%emt 0:15:33]} 23. Nxf3 {[%emt 0:02:20]} Nc2 {[%emt 0:01:36]} 24. Rab1 {[%emt 0:06:10]} Na3 {[%emt 0:00:09]} 25. Rxc8 {[%emt 0:01:25]} Rxc8 {[%emt 0:00:03]} 26. Ra1 {[%emt 0:00:52]} Nc4 {[%emt 0:00:35]} 27. Rc1 {[%emt 0:03:31]} a6 {[%emt 0:04:09]} 28. Nd2 {[%emt 0:02:13]} b5 {[%emt 0:00:53]} 29. Nxc4 {[%emt 0:01:16]} bxc4 {[%emt 0:00:07]} 30. Kd2 {[%emt 0:05:28]} f6 {[%emt 0:08:46]} 31. gxf6 {[%emt 0:03:07]} Bxf6 {[%emt 0:00:07]} 32. Kc3 {[%emt 0:02:33]} g5 {[%emt 0:07:31]} 33. Bxg5 {[%emt 0:02:26]} Bxg5 {[%emt 0:00:17]} 34. Rg1 {[%emt 0:00:03]} h6 {[%emt 0:00:20]} 35. f4 {[%emt 0:00:11]} Rb8 {[%emt 0:02:08]} 36. Kxc4 {[%emt 0:02:15]} a5 {[%emt 0:01:34]} 37. fxg5 {[%emt 0:00:46]} Rb4+ {[%emt 0:00:04]} 38. Kd5 {[%emt 0:01:11]} h5 {[%emt 0:00:37]} 39. Ke6 {[%emt 0:01:23]} Rxa4 {[%emt 0:00:14]} 40. Kxe7 {[%emt 0:00:32]} Kg7 {[%emt 0:00:05]} 41. Rd1 {[%emt 0:54:04]} Rb4 {[%emt 1:07:03]} 42. e4 {[%emt 0:00:41]} a4 {[%emt 0:00:06]} 43. e5 {[%emt 0:00:34]} a3 {[%emt 0:00:10]} 44. d5 {[%emt 0:00:32]} Rb5 {[%emt 0:01:41]} 45. Ke6 {[%emt 0:00:37]} a2 {[%emt 0:00:47]} 46. Ra1 {[%emt 0:00:08]} 1-0